bitfinex/quotes_ETHUSD_20241130
["timestamp","ask_amount","ask_price","bid_price","bid_amount"]
[1732963227586,8.93,3667.2,3667.0,2.72702]
[1732963227782,8.93,3667.2,3667.1,0.0300842]
[1732963228146,8.93,3667.2,3667.1,2.7570342]
[1732963228337,8.93,3667.3,3667.1,2.7570342]
[1732963228541,8.93,3667.3,3667.2,2.72687]
[1732963228738,8.93,3667.6,3667.4,2.72671]
[1732963228941,8.93,3667.6,3667.5,0.02999572]
[1732963229182,8.93,3667.6,3667.3,2.72679]
[1732963229362,8.93,3667.6,3667.0,2.72702]
[1732963229567,8.93,3667.6,3667.3,2.72679]
[1732963229890,9.90261,3667.6,3667.3,2.72675]
[1732963230088,8.93,3667.6,3667.4,0.03001784]
[1732963230239,8.93,3667.6,3667.4,2.75668784]
[1732963230644,9.48,3667.6,3667.5,2.72665]
[1732963230979,9.48,3667.6,3667.5,2.75680781]
[1732963231345,0.7961,3668.0,3667.6,2.72657]
[1732963231542,8.93,3668.3,3667.7,0.03011357]
[1732963231766,1.18329086,3668.2,3667.8,2.72642]
[1732963231971,0.7887,3668.4,3667.1,2.07800239]
[1732963232189,8.93,3668.6,3667.3,2.7268]
[1732963232527,0.7887,3668.8,3668.6,2.72583]
[1732963232689,1.03874152,3669.2,3668.7,2.72576]
[1732963232845,8.93,3669.1,3668.8,2.72568]
[1732963233041,0.99687415,3669.0,3668.9,2.72561]
[1732963233341,11.65504,3669.7,3668.9,2.72561]
[1732963233342,8.93,3669.3,3669.0,2.72552]
[1732963233574,8.93,3669.4,3669.0,2.72552]
[1732963234148,8.93,3669.4,3669.0,2.72547]
[1732963234357,8.93,3669.4,3669.1,2.78312683]
[1732963234776,0.55,3669.3,3669.1,2.78312683]
[1732963235148,0.7887,3669.5,3669.1,0.05767683]
[1732963235350,8.93,3669.9,3669.4,2.72523]
[1732963235660,8.93,3670.0,3669.5,0.05729001]
[1732963235986,8.93,3670.7,3670.0,2.72474]
[1732963236318,8.93,3670.6,3670.0,2.72472]
[1732963236475,8.93,3670.6,3669.8,0.7515]
[1732963236476,0.03405795,3670.5,3669.9,2.72485]
[1732963236681,8.93,3670.6,3670.1,2.78183634]
[1732963236908,0.97187,3670.5,3670.2,2.72464]
[1732963237113,0.97187,3670.5,3670.2,0.05712349]
[1732963237418,1.00592766,3670.5,3670.2,0.05712349]
[1732963237606,1.00592766,3670.5,3669.9,2.72485]
[1732963237785,1.00592766,3670.5,3670.3,0.05710063]
[1732963237982,1.08939274,3670.4,3669.9,2.7248]
[1732963238521,1.08939274,3670.4,3670.1,2.72468]
[1732963238690,1.08939274,3670.4,3670.2,2.72464]
[1732963239324,8.93,3670.7,3670.2,2.72464]
[1732963239483,0.55,3670.7,3669.9,2.7248]
[1732963239682,0.55,3670.5,3669.9,2.72486]
[1732963240202,0.55,3670.5,3669.8,0.7515]
[1732963240413,0.55,3670.7,3669.8,0.7515]
[1732963240584,0.55,3670.5,3670.1,2.7247]
[1732963240983,3.3084971,3670.5,3669.8,3.47644]
[1732963241186,0.55,3670.2,3669.5,2.72513]
[1732963241398,0.58405934,3670.2,3669.5,2.72513]
[1732963241633,0.58405934,3670.2,3669.6,2.72508]
[1732963241786,0.55,3670.3,3669.4,0.7515]
[1732963242093,0.9218173,3670.3,3669.7,2.72499]
[1732963242542,0.9218173,3670.3,3669.8,2.72493]
[1732963242897,2.72452,3670.4,3669.5,2.72512]
[1732963243133,0.55,3670.3,3669.7,2.72494]
[1732963243940,0.55,3670.4,3669.8,2.72493]
[1732963244116,0.55,3670.5,3669.8,0.05677767]
[1732963244306,0.55,3670.5,3669.9,2.72485]
[1732963244504,0.55,3670.5,3669.8,0.05677767]
[1732963244505,0.55,3670.6,3670.0,2.72478]
[1732963244711,0.55,3670.6,3670.0,2.78151196]
[1732963245045,0.55,3670.6,3670.1,0.05670911]
[1732963245396,0.55,3670.7,3670.1,2.7247]
[1732963245597,0.55,3670.5,3670.2,0.05668625]
[1732963245798,0.55,3670.5,3670.1,2.72471]
[1732963246092,0.55,3670.7,3670.3,0.0566634]
[1732963246303,0.55,3670.7,3670.2,0.05668625]
[1732963246501,0.55,3670.7,3670.4,0.05664055]
[1732963246731,3.27432,3670.7,3669.9,2.72486]
[1732963246930,2.75840692,3670.6,3670.5,0.0566177]
[1732963247120,3.27427,3670.7,3670.0,2.72478]
[1732963247442,0.55,3670.7,3670.1,0.05670911]
[1732963247629,0.55,3670.2,3669.4,0.7515]
[1732963247830,0.55,3670.0,3669.4,0.7515]
[1732963248034,0.0340619,3669.9,3669.0,2.72547]
[1732963248253,0.0340619,3669.9,3668.9,2.7256]
[1732963248254,3.2751,3669.6,3668.9,2.7256]
[1732963248541,2.72517,3669.5,3668.9,2.7256]
[1732963248741,0.55,3669.6,3669.0,2.72552]
[1732963248952,0.55,3669.8,3669.1,2.72545]
[1732963249441,3.27489,3669.9,3669.2,2.72538]
[1732963250001,0.55,3669.7,3669.2,2.72538]
[1732963250244,3.3090848,3669.7,3669.0,2.72552]
[1732963250409,0.55,3669.5,3669.0,2.72552]
[1732963250835,0.55,3669.5,3668.8,2.72563]
[1732963251035,0.55,3669.5,3668.9,2.7256]
[1732963251244,0.55,3669.5,3668.7,2.72575]
[1732963251245,3.87865148,3669.5,3668.7,2.72575]
[1732963251542,0.55,3669.3,3668.6,0.7515]
[1732963252245,0.55,3669.1,3668.6,0.7515]
[1732963252455,0.55,3669.1,3668.6,3.47733]
[1732963252754,0.55,3669.2,3668.6,3.47733]
[1732963252916,0.55,3669.3,3668.7,2.72575]
[1732963253925,0.55,3669.3,3668.6,0.7515]
[1732963253926,0.55,3669.3,3668.8,2.72566]
[1732963254311,0.55,3669.3,3668.7,2.72576]
[1732963254510,0.55,3669.3,3668.8,2.72563]
[1732963255127,0.55,3669.3,3668.7,3.11073456]
[1732963255331,3.30939834,3669.3,3668.7,2.72574]
[1732963255558,0.55,3669.1,3668.6,0.7515]
[1732963255843,0.55,3669.1,3668.3,2.72605]
[1732963256060,3.27541,3669.2,3668.2,3.49973]
[1732963256366,0.55,3669.0,3668.4,2.72593]
[1732963257660,3.27555,3669.0,3668.4,2.72593]
[1732963258528,0.55,3668.8,3668.2,3.49973]
[1732963258948,2.72536,3669.3,3668.2,3.49973]
[1732963258949,0.25036101,3669.1,3668.8,2.72568]
[1732963259283,8.93,3669.9,3669.5,2.72515]
[1732963259466,0.25060349,3669.8,3669.7,2.72501]
[1732963259670,0.40099413,3670.2,3669.7,2.78197687]
[1732963259858,0.25062043,3670.1,3670.0,2.72479]
[1732963260057,0.8062,3670.4,3670.0,2.72479]
[1732963260379,8.93,3670.6,3670.0,2.72479]
[1732963260380,8.93,3670.6,3670.2,2.72464]
[1732963260583,8.93,3671.2,3670.4,2.72449]
[1732963260793,0.8062,3671.3,3670.4,2.72449]
[1732963261094,0.65233579,3671.2,3670.4,2.72449]
[1732963261245,0.65233579,3671.1,3670.3,2.72455]
[1732963261451,0.65233579,3671.0,3670.5,0.05654597]
[1732963261791,0.8062,3670.8,3669.9,2.08743824]
[1732963262092,2.72453,3670.4,3669.6,2.72503]
[1732963262291,0.25097002,3670.3,3670.0,0.05666023]
[1732963262636,0.25097002,3670.2,3669.8,2.72487]
[1732963262761,3.12579741,3670.6,3670.1,0.05663737]
[1732963263085,0.55,3670.4,3669.8,2.72487]
[1732963263272,0.55,3670.2,3669.9,0.05668308]
[1732963263476,0.55,3670.2,3669.9,2.72481]
[1732963263679,0.55,3670.5,3670.0,0.05666023]
[1732963263877,0.65249486,3670.4,3670.0,0.05666023]
[1732963264184,1.20249486,3670.3,3669.8,2.72491]
[1732963264489,0.65249486,3670.2,3669.8,2.72491]
[1732963264662,1.20274144,3670.1,3669.9,0.05668308]
[1732963264851,1.20274144,3670.0,3669.6,2.72508]
[1732963265051,0.25105745,3669.9,3669.4,2.72523]
[1732963265287,0.80105745,3669.8,3669.7,2.72499]
[1732963265853,0.55,3669.8,3669.7,2.72499]
[1732963266053,0.80106758,3669.8,3669.7,2.72499]
[1732963266773,0.80106758,3669.8,3669.2,0.7736]
[1732963266774,0.55,3669.7,3669.2,2.72531]
[1732963266979,0.55,3669.7,3669.0,2.72553]
[1732963266980,0.25106854,3669.6,3669.3,2.72531]
[1732963267310,0.55,3669.4,3669.0,2.72549]
[1732963267491,0.25106854,3669.3,3669.0,2.72549]
[1732963267677,0.2510334,3669.2,3669.0,2.72549]
[1732963267890,0.55,3669.4,3669.0,2.72549]
[1732963268110,0.55,3669.2,3668.7,2.72575]
[1732963268402,0.55,3669.0,3668.3,0.7736]
[1732963268607,0.40159748,3669.4,3669.1,2.72541]
[1732963268807,0.40159748,3669.4,3669.0,0.7736]
[1732963268808,0.40164734,3669.8,3669.5,2.72513]
[1732963269025,0.25103204,3669.7,3669.5,2.72513]
[1732963269306,0.40164734,3669.8,3669.5,2.72513]
[1732963269307,0.25103204,3669.6,3669.5,2.72513]
[1732963269866,0.55,3669.6,3669.5,2.72513]
[1732963271311,0.55,3669.6,3669.5,3.270174]
[1732963271668,0.55,3669.6,3669.5,2.72513]
[1732963272007,0.55,3669.9,3669.6,2.72507]
[1732963272180,0.55,3669.7,3669.6,2.72507]
[1732963272381,0.80109012,3669.7,3669.6,2.72507]
[1732963272981,0.55,3670.1,3669.0,0.7736]
[1732963273277,3.27503,3669.7,3668.9,2.7256]
[1732963273494,0.55,3669.5,3668.9,2.7256]
[1732963273680,0.55,3669.5,3668.2,5.19056406]
[1732963273681,0.55,3669.3,3668.8,2.72565]
[1732963273931,0.55,3669.1,3668.5,2.72583]
[1732963274097,2.72553,3669.0,3668.9,0.05498383]
[1732963274432,3.27567,3668.9,3668.0,2.7262]
[1732963274632,0.55,3668.7,3668.1,2.7262]
[1732963275142,0.55,3668.7,3667.7,0.8072]
[1732963275294,0.55,3668.5,3667.9,2.7263]
[1732963275493,1.357,3668.5,3668.0,2.72622]
[1732963276319,1.357,3668.5,3667.7,0.8072]
[1732963276530,1.357,3668.5,3668.1,2.7262]
[1732963276718,1.357,3668.5,3668.0,2.72627]
[1732963278022,1.357,3668.5,3668.0,2.72626]
[1732963278429,0.55,3668.3,3667.8,2.72643]
[1732963278804,0.03407882,3668.2,3667.8,2.72643]
[1732963279031,0.55,3668.3,3667.8,2.72643]
[1732963279544,0.55,3668.3,3667.1,3.5341]
[1732963279545,0.55,3668.4,3667.2,2.72682]
[1732963279844,0.55,3668.4,3667.7,2.72643]
[1732963280008,0.80087292,3668.4,3667.8,0.05549479]
[1732963280209,0.80087292,3668.4,3667.7,2.72643]
[1732963280210,0.55,3668.4,3667.7,2.72643]
[1732963280448,0.55,3668.4,3667.8,0.05549479]
[1732963280739,3.53291,3668.5,3667.8,0.05549479]
[1732963280740,0.55,3668.2,3667.8,0.05549479]
[1732963280907,0.55,3668.3,3667.8,2.78190479]
[1732963281102,0.55,3668.4,3668.0,2.72622]
[1732963281336,0.55,3668.4,3668.1,0.05568223]
[1732963281852,0.55,3668.2,3667.5,2.7266]
[1732963282018,0.55,3668.2,3667.3,2.72679]
[1732963282019,0.55,3668.0,3667.3,2.72679]
[1732963282207,0.55,3667.8,3667.3,2.72679]
[1732963282407,0.58408208,3667.8,3667.3,2.72679]
[1732963282603,0.55,3667.8,3667.3,2.72679]
[1732963282843,0.55,3667.6,3667.3,2.72679]
[1732963283011,0.55,3667.8,3667.3,2.72679]
[1732963283832,0.55,3667.8,3667.4,2.7267]
[1732963284713,0.55,3667.8,3667.5,2.72658]
[1732963284913,0.55,3667.8,3667.2,2.72687]
[1732963285151,0.55,3667.8,3667.3,2.72676]
[1732963285655,0.55,3667.8,3667.2,2.72687]
[1732963285656,0.55,3667.8,3667.4,2.72671]
[1732963285861,0.55,3667.8,3667.2,2.72687]
[1732963286240,0.55,3667.8,3666.7,0.8072]
[1732963286438,0.55,3667.6,3666.7,0.8072]
[1732963286627,0.55,3667.6,3667.1,2.72693]
[1732963286870,0.55,3667.7,3667.1,2.72693]
[1732963287162,0.58408573,3667.7,3667.1,2.72689]
[1732963287364,1.2341921,3667.7,3667.1,2.72689]
[1732963287570,1.26827792,3667.7,3667.2,2.72685]
[1732963287722,0.55,3667.8,3667.2,2.72685]
[1732963287916,0.55,3667.8,3666.7,5.45448]
[1732963288116,0.55,3667.8,3667.2,2.72682]
[1732963288523,9.48,3667.8,3667.2,2.72682]
[1732963288722,12.20643,3667.8,3667.2,2.72682]
[1732963288949,0.55,3667.6,3667.2,2.72682]
[1732963289260,12.20643,3667.8,3667.3,0.05545115]
[1732963289461,9.48,3667.8,3667.0,2.72701]
[1732963289772,9.48,3667.8,3667.2,2.72684]
[1732963290056,0.55,3667.6,3667.3,0.05545115]
[1732963290261,0.55,3667.6,3667.2,2.72684]
[1732963290434,0.55,3667.6,3667.3,0.05545115]
[1732963290617,0.55,3667.6,3667.2,2.72684]
[1732963290828,0.55,3667.7,3667.3,0.05545115]
[1732963291027,0.55,3667.7,3667.3,2.72679]
[1732963291330,0.55,3667.7,3667.3,2.72676]
[1732963291561,0.55,3667.5,3667.4,2.72672]
[1732963291721,0.55,3667.5,3667.4,2.78214826]
[1732963292118,1.36518483,3667.5,3667.4,0.05542826]
[1732963292422,0.55,3667.4,3666.9,2.72709]
[1732963292624,0.55,3667.2,3667.0,0.05551982]
[1732963292855,0.55,3667.2,3667.0,2.78247982]
[1732963293256,0.55,3667.4,3667.0,2.78247982]
[1732963293888,0.03408721,3667.3,3667.0,0.05551982]
[1732963295001,0.55,3667.2,3667.1,0.05575807]
[1732963295155,0.55,3667.2,3667.0,2.72702]
[1732963295358,9.7111,3667.5,3667.0,2.72702]
[1732963295359,0.55,3667.4,3667.0,2.72702]
[1732963295591,0.55,3667.4,3667.1,2.78269807]
[1732963296097,0.55,3667.2,3667.1,0.05575807]
[1732963296403,12.20687,3667.2,3666.6,2.72731]
[1732963296602,12.20687,3667.2,3667.1,0.05575807]
[1732963297058,9.48,3667.2,3666.7,2.72724]
[1732963297377,9.48,3667.2,3666.8,2.78299471]
[1732963297588,9.48,3667.2,3666.8,0.05584471]
[1732963298110,9.48,3667.2,3666.9,0.05582182]
[1732963298111,0.55,3667.0,3666.9,0.05582182]
[1732963298310,0.55,3667.0,3666.9,2.72709]
[1732963298463,0.7811,3667.4,3667.3,2.7268]
[1732963298803,0.7811,3667.4,3667.3,2.78253025]
[1732963299023,3.50782,3667.4,3667.3,0.05573025]
[1732963299372,3.75783836,3667.4,3666.6,2.72731]
[1732963299616,3.50782,3667.4,3666.6,2.72731]
[1732963299816,0.55,3667.3,3666.7,2.78309945]
[1732963300185,0.55,3667.3,3666.7,0.05585945]
[1732963300186,0.55,3667.1,3666.7,0.05585945]
[1732963300618,0.55,3666.9,3666.6,2.72729]
[1732963300918,0.55,3666.9,3666.7,0.05590353]
[1732963301290,0.55,3666.9,3666.6,2.7273]
[1732963301475,0.55,3666.9,3666.7,0.05590353]
[1732963301884,0.55,3666.9,3666.7,2.78312353]
[1732963302087,0.55,3667.0,3666.9,2.72708]
[1732963302290,0.7811,3667.7,3666.9,0.05586754]
[1732963302490,0.7811,3667.7,3667.5,2.7266]
[1732963302724,1.03169686,3667.7,3667.6,0.05570731]
[1732963303683,1.03169686,3667.7,3667.6,2.78227731]
[1732963303878,0.7811,3667.7,3667.6,2.78227731]
[1732963304086,1.3311,3667.7,3667.6,2.78227731]
[1732963304718,1.3311,3667.7,3667.6,0.05570731]
[1732963304902,0.55,3667.6,3667.4,2.72667]
[1732963305102,0.55,3667.6,3667.5,0.0556306]
[1732963305590,0.80108539,3667.6,3667.5,0.0556306]
[1732963305932,0.80108539,3667.6,3667.5,2.72665]
[1732963306231,9.7111,3668.5,3668.2,2.72611]
[1732963306415,0.25113063,3668.4,3668.3,2.72605]
[1732963306599,0.25113063,3668.4,3668.3,2.78145186]
[1732963307428,0.40196375,3668.8,3668.5,2.72583]
[1732963307640,0.7811,3668.9,3668.4,2.72598]
[1732963307641,0.25118032,3668.7,3668.6,2.72578]
[1732963307929,0.25118032,3668.7,3668.6,2.78111323]
[1732963308429,0.7811,3668.9,3668.6,0.05533323]
[1732963308632,0.28515351,3668.8,3668.6,0.05533323]
[1732963308839,0.25108013,3668.7,3668.6,0.05533323]
[1732963309492,0.55,3668.6,3668.2,2.72608]
[1732963309731,0.55,3668.6,3668.3,0.05540186]
[1732963309891,0.25101829,3668.5,3668.3,0.05540186]
[1732963310086,0.55,3668.4,3668.2,2.72608]
[1732963310635,0.55,3668.7,3668.3,0.05540186]
[1732963310790,0.55,3668.5,3668.3,0.05540186]
[1732963310992,0.55,3668.1,3667.7,2.72645]
[1732963311296,0.58407843,3668.1,3667.8,0.05539058]
[1732963311562,0.55,3667.9,3667.5,2.72664]
[1732963311859,0.55,3668.1,3667.4,2.72672]
[1732963312028,0.55,3668.1,3667.5,0.05552451]
[1732963312226,0.55,3668.1,3667.8,2.72639]
[1732963312426,0.55,3668.1,3667.9,2.72633]
[1732963312627,0.55,3668.2,3667.9,2.78176298]
[1732963313156,0.55,3668.2,3668.1,2.7262]
[1732963313343,0.80097611,3668.4,3668.1,2.7262]
[1732963313662,0.55,3668.4,3668.1,0.05534642]
[1732963313858,0.55,3668.2,3668.1,0.05534642]
[1732963314062,0.55,3668.2,3667.9,2.72633]
[1732963314264,0.80095132,3668.4,3668.1,0.05534642]
[1732963314563,4.0943,3668.1,3668.0,0.0553693]
[1732963314729,0.55,3668.0,3667.5,2.72659]
[1732963314935,0.55,3667.8,3667.5,2.72659]
[1732963315148,0.55,3667.8,3667.3,2.72679]
[1732963315368,3.5273267,3667.8,3667.2,2.72686]
[1732963315547,0.55,3667.8,3667.3,2.72674]
[1732963315863,0.55,3667.6,3667.3,2.72674]
[1732963316061,0.55,3667.7,3667.3,2.72674]
[1732963316557,0.55,3667.6,3667.2,2.72687]
[1732963316863,0.55,3667.6,3667.3,2.72678]
[1732963317359,0.55,3667.8,3667.3,2.72678]
[1732963317793,0.55,3667.6,3667.3,2.72678]
[1732963318532,0.55,3667.6,3667.2,2.72682]
[1732963318867,11.65632,3668.0,3666.8,2.72716]
[1732963318868,0.55,3667.8,3666.8,2.72716]
[1732963319081,1.3099,3667.4,3666.6,3.52178]
[1732963319237,0.55,3667.2,3666.9,0.055577]
[1732963319434,0.55,3667.2,3666.8,2.72711]
[1732963319663,0.55,3667.3,3666.8,2.72711]
[1732963319868,0.55,3667.3,3666.9,0.05567982]
[1732963320164,0.55,3667.3,3666.9,2.72707]
[1732963320319,0.55,3667.3,3667.0,0.05563197]
[1732963320669,0.58408713,3667.3,3667.0,0.05563197]
[1732963320963,0.55,3667.3,3667.0,0.05563197]
[1732963321966,0.55,3667.3,3667.0,2.78264197]
[1732963322346,0.58408713,3667.3,3667.0,0.05563197]
[1732963322660,0.55,3667.3,3667.0,0.05563197]
[1732963322909,0.55,3667.3,3666.9,2.72708]
[1732963323015,0.55,3667.3,3667.1,0.05563403]
[1732963323215,0.55,3667.3,3667.0,0.05565692]
[1732963323463,0.55,3667.3,3667.2,2.78248114]
[1732963323666,0.55,3667.6,3667.4,2.72667]
[1732963324022,0.55,3667.6,3667.5,0.05554248]
[1732963324449,1.17778995,3668.6,3667.5,0.05554248]
[1732963324648,0.65194759,3668.4,3668.3,2.72605]
[1732963324928,0.25074907,3668.6,3668.5,2.7259]
[1732963325131,0.40129275,3669.1,3668.6,2.72581]
[1732963325369,0.25081412,3669.0,3668.7,0.05519448]
[1732963325573,0.57171098,3669.5,3668.7,2.1443847]
[1732963325767,0.25078637,3669.4,3669.3,2.72528]
[1732963326066,0.25078637,3669.7,3669.5,2.7251]
[1732963326272,0.25078637,3669.6,3669.4,2.72524]
[1732963326430,0.25078637,3670.0,3669.6,0.05468683]
[1732963326644,0.25078637,3669.9,3669.5,2.77985969]
[1732963326845,0.25078637,3669.8,3669.7,0.05465907]
[1732963327067,0.28484871,3670.0,3669.7,0.05458731]
[1732963327283,0.25060526,3669.9,3669.7,0.05458731]
[1732963327483,0.55,3669.7,3668.8,0.8078]
[1732963327691,0.55,3669.5,3668.5,2.72586]
[1732963327845,2.72553,3669.0,3668.0,2.72625]
[1732963328052,2.72576,3668.7,3668.0,0.8078]
[1732963328254,0.55,3668.6,3668.2,2.72611]
[1732963328450,0.55,3668.8,3668.2,2.72611]
[1732963328652,1.11326274,3668.8,3668.3,2.77916249]
[1732963328886,1.11326274,3668.8,3668.4,0.05310961]
[1732963329388,0.55,3668.6,3668.5,0.05308674]
[1732963329890,0.55,3668.7,3668.2,2.72612]
[1732963330191,0.55,3668.7,3668.3,2.72605]
[1732963330486,0.55,3668.7,3668.3,2.77918249]
[1732963330703,0.55,3668.8,3668.7,2.72576]
[1732963331047,0.55,3668.8,3668.7,2.77880099]
[1732963333955,0.7773,3669.7,3668.7,0.05304099]
[1732963334159,1.02770984,3669.7,3669.2,2.72533]
[1732963334349,0.7773,3669.7,3669.3,0.05290379]
[1732963334758,0.25040984,3669.8,3669.3,0.05290379]
[1732963335065,0.03406423,3669.7,3668.5,0.35519154]
[1732963335262,2.72514,3669.6,3668.4,0.7542]
[1732963335508,8.93,3670.0,3668.4,0.7542]
[1732963335509,0.40052943,3669.9,3669.2,2.72538]
[1732963335789,11.65482,3670.0,3669.3,0.05280977]
[1732963336099,0.55,3669.8,3669.3,0.05280977]
[1732963336253,0.55,3669.3,3668.7,2.72574]
[1732963336456,0.55,3669.1,3668.5,2.7259]
[1732963336803,0.55,3669.1,3668.5,0.34801]
[1732963337090,0.55,3669.1,3668.6,0.05306384]
[1732963337455,0.55,3669.4,3668.5,2.7259]
[1732963337651,0.55,3669.2,3668.7,0.05306707]
[1732963337950,0.55,3669.0,3668.8,0.05293223]
[1732963338151,0.55,3669.0,3668.3,2.72602]
[1732963338481,4.053,3668.8,3668.4,0.05302371]
[1732963338788,3.27585,3668.6,3667.9,3.48051]
[1732963338995,3.27585,3668.6,3668.5,0.05313891]
[1732963339197,3.27585,3668.6,3667.9,3.48051]
[1732963339353,3.27585,3668.6,3667.0,3.01719483]
[1732963339354,0.55,3668.4,3667.5,2.72663]
[1732963339555,0.55,3668.4,3667.6,0.05334483]
[1732963339853,0.55,3668.7,3667.3,2.72679]
[1732963340048,0.55,3668.5,3667.7,0.05332194]
[1732963340295,0.55,3668.2,3667.6,2.72656]
[1732963340591,0.55,3668.2,3667.7,0.05317512]
[1732963340749,0.03407949,3668.1,3667.7,0.05317512]
[1732963340954,0.55,3668.0,3667.7,0.05317512]
[1732963341179,0.55,3668.0,3667.7,3.09244853]
[1732963341760,0.55,3668.3,3667.7,3.09244853]
[1732963341966,3.27607,3668.3,3667.7,3.09244853]
[1732963342959,3.27607,3668.3,3667.7,0.36595853]
[1732963343396,0.0340795,3668.2,3667.7,0.05317512]
[1732963343603,0.55,3668.1,3667.7,0.05317512]
[1732963343901,0.55,3668.2,3667.7,0.05317512]
[1732963344400,1.3273,3668.0,3667.7,0.05317512]
[1732963345002,1.3273,3668.0,3667.1,2.72691]
[1732963345003,0.55,3667.8,3667.1,2.72691]
[1732963345202,0.55,3667.6,3667.1,2.72691]
[1732963345356,0.55,3667.4,3666.8,2.7271]
[1732963345561,3.27672,3667.4,3666.8,2.7271]
[1732963345795,0.55,3667.2,3666.8,2.7271]
[1732963346861,0.55,3667.0,3666.0,0.7542]
[1732963347088,0.55,3667.0,3666.3,2.72749]
[1732963347399,0.55,3667.0,3666.4,0.545517]
[1732963347559,0.55,3667.0,3666.0,0.7542]
[1732963347560,0.55,3667.0,3666.2,2.7276]
[1732963347760,0.55,3667.0,3666.4,2.72743]
[1732963348170,0.55,3666.8,3666.0,3.48196]
[1732963348375,0.55,3666.8,3666.2,2.7276]
[1732963348957,0.55,3666.8,3666.3,0.05379408]
[1732963349185,0.55,3666.6,3666.3,0.05379408]
[1732963349389,0.55,3666.6,3665.3,2.46619714]
[1732963349390,3.27737,3666.6,3665.6,0.7542]
[1732963349632,3.27737,3666.6,3665.9,2.72782]
[1732963350116,3.27737,3666.6,3666.0,0.05399672]
[1732963350899,0.55,3666.6,3666.1,2.72769]
[1732963351312,0.55,3666.6,3666.2,0.05414015]
[1732963351486,1.3089,3666.4,3666.2,0.05414015]
[1732963351685,1.3089,3666.4,3665.7,3.10335]
[1732963351686,0.58409652,3666.3,3665.7,3.10335]
[1732963351899,0.55,3666.2,3665.8,2.72788]
[1732963352099,0.55,3666.2,3665.7,3.10335]
[1732963352100,0.55,3666.3,3665.7,3.10335]
[1732963352310,0.58409653,3666.3,3665.8,0.05268784]
[1732963352488,0.55,3666.1,3665.4,2.72814]
[1732963352694,0.55,3665.9,3665.4,3.000954]
[1732963353002,0.55,3665.9,3665.5,0.05084946]
[1732963353147,0.55,3666.1,3665.5,0.05084946]
[1732963353560,2.72739,3666.5,3665.5,0.05084946]
[1732963353561,1.3089,3665.9,3665.5,0.05084946]
[1732963353852,0.55,3665.7,3665.2,2.72833]
[1732963354007,0.55,3665.7,3665.6,0.05098666]
[1732963354210,0.7589,3665.9,3665.3,2.72826]
[1732963354211,0.55,3665.8,3665.3,2.72826]
[1732963354437,0.55,3665.8,3665.6,0.05098666]
[1732963354648,9.48,3665.8,3665.3,2.72826]
[1732963354955,9.48,3665.8,3665.7,0.05096375]
[1732963355541,9.48,3665.8,3665.6,2.72805]
[1732963355748,9.48,3665.8,3665.7,2.77905012]
[1732963355949,8.93,3665.8,3665.7,2.77905012]
[1732963356355,9.6889,3666.6,3665.7,0.05106012]
[1732963356657,0.7589,3666.9,3666.4,2.72745]
[1732963357173,0.7589,3666.9,3666.5,0.05084422]
[1732963357330,2.72718,3666.8,3666.5,0.05084422]
[1732963357847,2.72718,3666.8,3666.2,2.7276]
[1732963358047,0.03409458,3666.7,3666.6,0.05082132]
[1732963358255,0.03409458,3666.7,3666.0,2.72773]
[1732963358562,12.20726,3666.7,3666.6,0.05076579]
[1732963358862,0.55,3666.3,3665.7,2.72797]
[1732963359224,0.55,3666.1,3665.8,0.05094901]
[1732963359626,0.55,3666.1,3665.7,2.72797]
[1732963359870,0.55,3666.1,3665.9,0.0509261]
[1732963360158,0.58409839,3666.1,3665.6,2.72803]
[1732963360359,0.55,3666.1,3665.4,2.7282]
[1732963360669,0.55,3666.1,3665.8,2.72786]
[1732963360837,0.55,3666.1,3665.7,2.72798]
[1732963361035,0.55,3666.1,3665.9,0.0509261]
[1732963361257,0.5840984,3666.1,3665.8,0.05094901]
[1732963361557,0.5840984,3666.1,3666.0,0.05090319]
[1732963361764,0.55,3666.1,3666.0,0.05090319]
[1732963361948,0.55,3666.1,3665.6,2.72802]
[1732963362148,0.55,3666.1,3665.9,2.72783]
[1732963362725,0.55,3666.1,3666.0,0.05090319]
[1732963362973,0.55,3666.1,3665.8,2.72786]
[1732963363150,0.55,3666.1,3665.9,0.0509784]
[1732963363351,0.55,3666.1,3665.9,2.7787984]
[1732963364072,0.55,3666.1,3666.0,2.72776]
[1732963364282,0.55,3666.1,3665.9,0.0509784]
[1732963364490,0.55,3666.1,3666.0,0.05100286]
[1732963365383,0.55,3666.4,3666.2,2.72761]
[1732963365687,0.55,3666.4,3666.3,0.05093415]
[1732963365982,0.55,3666.4,3666.2,2.72761]
[1732963366139,0.55,3666.4,3666.3,2.77847415]
[1732963366476,0.55,3666.4,3666.3,0.05093415]
[1732963366693,0.7589,3666.5,3666.3,2.77847415]
[1732963366842,0.7589,3666.8,3666.6,2.72726]
[1732963367183,0.7589,3666.8,3666.7,0.05081969]
[1732963367389,0.7589,3666.8,3666.5,2.72739]
[1732963367558,0.7589,3666.8,3666.6,0.05084259]
[1732963368076,0.7589,3666.8,3666.6,2.77815259]
[1732963368487,0.55,3666.7,3666.6,2.77815259]
[1732963369352,0.55,3666.7,3666.6,0.05084259]
[1732963369579,0.55,3666.7,3666.4,2.72742]
[1732963369736,0.55,3666.7,3666.5,2.77820548]